[Event "Late-Titled-Tuesday-Blitz-March-12-2024"]
[Site "Chess.com"]
[Date "2024.03.12"]
[Round "11"]
[White "Polish_fighter3000"]
[Black "Anton_Demchenko"]
[Result "1-0"]
[WhiteElo "3135"]
[BlackElo "2972"]
[TimeControl "180+1"]
[EndTime "16:05:29 PDT"]
[Termination "Polish_fighter3000 won by resignation"]

1. b3 {[%clk 0:03:00.9]} 1... g6 {[%clk 0:02:59.5]} 2. Bb2 {[%clk 0:03:01.8]}
2... Nf6 {[%clk 0:03:00]} 3. g3 {[%clk 0:03:01.7]} 3... Bg7 {[%clk 0:03:00]} 4.
Bg2 {[%clk 0:03:02.4]} 4... d6 {[%clk 0:03:00.5]} 5. d4 {[%clk 0:03:01.6]} 5...
O-O {[%clk 0:03:00.7]} 6. Nf3 {[%clk 0:03:01.8]} 6... Nbd7 {[%clk 0:03:01.4]} 7.
c4 {[%clk 0:03:00.6]} 7... e5 {[%clk 0:03:00.9]} 8. dxe5 {[%clk 0:03:00.3]} 8...
dxe5 {[%clk 0:03:01.8]} 9. O-O {[%clk 0:02:50.2]} 9... e4 {[%clk 0:03:02.1]} 10.
Ne1 {[%clk 0:02:48.5]} 10... Re8 {[%clk 0:02:59.9]} 11. Nc3 {[%clk 0:02:48.2]}
11... c6 {[%clk 0:02:58.1]} 12. Nc2 {[%clk 0:02:45.6]} 12... Qe7 {[%clk
0:02:52.6]} 13. Qd2 {[%clk 0:02:44.5]} 13... h5 {[%clk 0:02:46.7]} 14. Rad1
{[%clk 0:02:36.2]} 14... h4 {[%clk 0:02:43.1]} 15. Qd6 {[%clk 0:02:27.7]} 15...
Qxd6 {[%clk 0:02:10.7]} 16. Rxd6 {[%clk 0:02:28.6]} 16... hxg3 {[%clk
0:02:09.7]} 17. hxg3 {[%clk 0:02:27]} 17... Ng4 {[%clk 0:01:48.8]} 18. Nd4
{[%clk 0:02:24.4]} 18... Be5 {[%clk 0:01:18.2]} 19. Nxe4 {[%clk 0:02:23.4]}
19... Nc5 {[%clk 0:01:18.8]} 20. Nxc6 {[%clk 0:01:45.2]} 20... Nxe4 {[%clk
0:00:48]} 21. Bxe5 {[%clk 0:01:44.9]} 21... Nxd6 {[%clk 0:00:37]} 22. Bxd6
{[%clk 0:01:45.8]} 22... bxc6 {[%clk 0:00:36.6]} 23. Bxc6 {[%clk 0:01:45.4]}
23... Be6 {[%clk 0:00:25]} 24. Rd1 {[%clk 0:01:36.1]} 24... Rad8 {[%clk
0:00:22.1]} 25. Bxe8 {[%clk 0:01:33.5]} 25... Rxe8 {[%clk 0:00:22.2]} 26. e4
{[%clk 0:01:29.7]} 26... f6 {[%clk 0:00:21.4]} 27. f3 {[%clk 0:01:28.1]} 27...
Ne5 {[%clk 0:00:19.1]} 28. Bxe5 {[%clk 0:01:24.5]} 28... fxe5 {[%clk 0:00:19.7]}
29. Rd6 {[%clk 0:01:24]} 29... Kf7 {[%clk 0:00:20.3]} 30. Kf2 {[%clk 0:01:22.5]}
30... Re7 {[%clk 0:00:19.6]} 31. f4 {[%clk 0:01:17.3]} 31... exf4 {[%clk
0:00:16.6]} 32. gxf4 {[%clk 0:01:18.2]} 32... Rd7 {[%clk 0:00:17.3]} 33. Ra6
{[%clk 0:01:17.5]} 33... Bg4 {[%clk 0:00:15.3]} 34. Kg3 {[%clk 0:01:12.4]} 34...
Bd1 {[%clk 0:00:14.6]} 35. Kh4 {[%clk 0:01:09.8]} 35... Bc2 {[%clk 0:00:14.5]}
36. e5 {[%clk 0:01:07.1]} 36... Bf5 {[%clk 0:00:15]} 37. Kg5 {[%clk 0:01:07.6]}
37... Rd2 {[%clk 0:00:13.8]} 38. Rxa7+ {[%clk 0:01:07.2]} 38... Ke6 {[%clk
0:00:14.5]} 39. c5 {[%clk 0:00:48.4]} 39... Rg2+ {[%clk 0:00:14.2]} 40. Kh6
{[%clk 0:00:48.7]} 40... Kd5 {[%clk 0:00:13.6]} 41. b4 {[%clk 0:00:41.9]} 41...
Rg4 {[%clk 0:00:14.1]} 42. a4 {[%clk 0:00:32.4]} 42... Rxf4 {[%clk 0:00:14.5]}
43. Rb7 {[%clk 0:00:33.1]} 43... Rh4+ {[%clk 0:00:11]} 44. Kg5 {[%clk
0:00:32.7]} 44... Rg4+ {[%clk 0:00:11.1]} 45. Kf6 {[%clk 0:00:33.2]} 45... Rg1
{[%clk 0:00:11.1]} 46. a5 {[%clk 0:00:32.5]} 46... Rf1 {[%clk 0:00:11.6]} 47.
Rb6 {[%clk 0:00:19]} 47... Bd3+ {[%clk 0:00:10.7]} 48. Ke7 {[%clk 0:00:16.2]}
48... Kxe5 {[%clk 0:00:10.7]} 49. a6 {[%clk 0:00:08.7]} 49... Ra1 {[%clk
0:00:10.3]} 50. b5 {[%clk 0:00:06.9]} 50... g5 {[%clk 0:00:06.3]} 51. c6 {[%clk
0:00:07]} 51... Rh1 {[%clk 0:00:06.8]} 52. c7 {[%clk 0:00:05.3]} 52... Rh7+
{[%clk 0:00:07.5]} 53. Kd8 {[%clk 0:00:05.5]} 53... Rh8+ {[%clk 0:00:08.2]} 54.
Kd7 {[%clk 0:00:05.9]} 54... Bf5+ {[%clk 0:00:08.1]} 55. Kc6 {[%clk 0:00:06.3]}
55... g4 {[%clk 0:00:08.1]} 56. Rb8 {[%clk 0:00:05.9]} 56... Rh6+ {[%clk
0:00:07.6]} 57. Kc5 {[%clk 0:00:05.8]} 57... g3 {[%clk 0:00:07.1]} 58. c8=Q
{[%clk 0:00:06]} 58... Bxc8 {[%clk 0:00:06.8]} 59. Rxc8 {[%clk 0:00:06.9]} 59...
Rg6 {[%clk 0:00:07.3]} 60. Re8+ {[%clk 0:00:07.5]} 60... Kf4 {[%clk 0:00:06.8]}
61. Re1 {[%clk 0:00:08.4]} 61... Rg5+ {[%clk 0:00:04.3]} 62. Kb4 {[%clk
0:00:07.4]} 62... g2 {[%clk 0:00:04.2]} 63. a7 {[%clk 0:00:06.9]} 63... Rg8
{[%clk 0:00:04]} 64. Rg1 {[%clk 0:00:06.1]} 64... Kf3 {[%clk 0:00:04.4]} 65. b6
{[%clk 0:00:06.6]} 65... Kf2 {[%clk 0:00:03]} 66. Rxg2+ {[%clk 0:00:07]} 66...
Rxg2 {[%clk 0:00:03.2]} 67. a8=Q {[%clk 0:00:07]} 67... Rg1 {[%clk 0:00:04.1]}
68. Qe4 {[%clk 0:00:07.1]} 68... Rd1 {[%clk 0:00:03.7]} 69. Qf4+ {[%clk
0:00:07]} 69... Ke1 {[%clk 0:00:04.1]} 70. Qe3+ {[%clk 0:00:07.4]} 70... Kf1
{[%clk 0:00:04.3]} 71. Qf3+ {[%clk 0:00:08.3]} 71... Ke1 {[%clk 0:00:04.9]} 72.
Qxd1+ {[%clk 0:00:09.2]} 72... Kxd1 {[%clk 0:00:05.8]} 73. b7 {[%clk 0:00:09.8]}
73... Ke2 {[%clk 0:00:06.6]} 74. b8=Q {[%clk 0:00:10.7]} 74... Kd3 {[%clk
0:00:07.4]} 75. Qg3+ {[%clk 0:00:11]} 75... Ke4 {[%clk 0:00:07.8]} 76. Qb3
{[%clk 0:00:11.8]} 76... Kf5 {[%clk 0:00:08.7]} 77. Qe3 {[%clk 0:00:11.2]} 77...
Kf6 {[%clk 0:00:09]} 78. Qe4 {[%clk 0:00:11]} 78... Kg5 {[%clk 0:00:08.9]} 79.
Qf3 {[%clk 0:00:10.9]} 1-0

[Event "Late-Titled-Tuesday-Blitz-March-12-2024"]
[Site "Chess.com"]
[Date "2024.03.12"]
[Round "11"]
[White "Fjal"]
[Black "DeArron_Fox"]
[Result "1-0"]
[WhiteElo "2345"]
[BlackElo "2514"]
[TimeControl "180+1"]
[EndTime "16:05:37 PDT"]
[Termination "Fjal won by resignation"]

1. Nf3 {[%clk 0:02:52.4]} 1... d5 {[%clk 0:02:37.4]} 2. g3 {[%clk 0:02:53.3]}
2... Nf6 {[%clk 0:02:35]} 3. Bg2 {[%clk 0:02:53.9]} 3... e6 {[%clk 0:02:35.2]}
4. O-O {[%clk 0:02:54.2]} 4... Be7 {[%clk 0:02:35.9]} 5. d3 {[%clk 0:02:55.1]}
5... O-O {[%clk 0:02:36.8]} 6. Nbd2 {[%clk 0:02:55.6]} 6... c5 {[%clk
0:02:37.6]} 7. e4 {[%clk 0:02:56.2]} 7... Nc6 {[%clk 0:02:38.5]} 8. Re1 {[%clk
0:02:56.2]} 8... Qc7 {[%clk 0:02:38.7]} 9. e5 {[%clk 0:02:55.9]} 9... Nd7 {[%clk
0:02:39.1]} 10. Qe2 {[%clk 0:02:56.5]} 10... b5 {[%clk 0:02:39.7]} 11. h4 {[%clk
0:02:56.2]} 11... a5 {[%clk 0:02:39.9]} 12. Nf1 {[%clk 0:02:56.8]} 12... Ba6
{[%clk 0:02:39]} 13. Bf4 {[%clk 0:02:57]} 13... Rfc8 {[%clk 0:02:39.1]} 14. N1h2
{[%clk 0:02:57.5]} 14... h6 {[%clk 0:02:32.1]} 15. Ng4 {[%clk 0:02:52.8]} 15...
Bf8 {[%clk 0:02:29.9]} 16. Qd2 {[%clk 0:02:50.6]} 16... Kh7 {[%clk 0:02:28.1]}
17. c3 {[%clk 0:02:42.2]} 17... b4 {[%clk 0:02:27.1]} 18. Bf1 {[%clk 0:02:39.8]}
18... a4 {[%clk 0:02:20.6]} 19. c4 {[%clk 0:02:37.6]} 19... b3 {[%clk
0:02:12.6]} 20. cxd5 {[%clk 0:02:34.4]} 20... Nb4 {[%clk 0:02:02.4]} 21. dxe6
{[%clk 0:02:29.7]} 21... fxe6 {[%clk 0:02:01.9]} 22. axb3 {[%clk 0:02:04.6]}
22... axb3 {[%clk 0:02:02.8]} 23. Rxa6 {[%clk 0:02:00.9]} 23... Rxa6 {[%clk
0:01:57]} 24. d4 {[%clk 0:01:59.6]} 24... c4 {[%clk 0:01:54.4]} 25. Rc1 {[%clk
0:01:55.4]} 25... Nb6 {[%clk 0:01:33]} 26. Qe3 {[%clk 0:01:34.9]} 26... Qb7
{[%clk 0:01:17.6]} 27. Bg2 {[%clk 0:01:30.7]} 27... Qf7 {[%clk 0:01:01.9]} 28.
Nd2 {[%clk 0:01:11.2]} 28... Kh8 {[%clk 0:00:52.8]} 29. Be4 {[%clk 0:00:41.7]}
29... N6d5 {[%clk 0:00:32.5]} 30. Bxd5 {[%clk 0:00:16]} 30... Nxd5 {[%clk
0:00:29.9]} 31. Qe4 {[%clk 0:00:16.5]} 31... c3 {[%clk 0:00:05.4]} 32. Nxb3
{[%clk 0:00:13.9]} 32... cxb2 {[%clk 0:00:05.8]} 33. Rxc8 {[%clk 0:00:14]} 33...
Ra1+ {[%clk 0:00:06.4]} 34. Rc1 {[%clk 0:00:09.8]} 34... Nxf4 {[%clk 0:00:02.4]}
35. Rxa1 {[%clk 0:00:08.6]} 35... bxa1=Q+ {[%clk 0:00:02.4]} 36. Nxa1 {[%clk
0:00:08.4]} 36... Nd5 {[%clk 0:00:03.3]} 37. Nb3 {[%clk 0:00:07.6]} 37... Qb7
{[%clk 0:00:02.1]} 38. Nd2 {[%clk 0:00:06.6]} 38... Qb2 {[%clk 0:00:01.8]} 39.
Qd3 {[%clk 0:00:04.1]} 39... Qc1+ {[%clk 0:00:02]} 40. Nf1 {[%clk 0:00:03.5]}
40... Bb4 {[%clk 0:00:02.9]} 41. Qf3 {[%clk 0:00:01.7]} 41... Bc3 {[%clk
0:00:02.8]} 42. Qf8+ {[%clk 0:00:02.2]} 42... Kh7 {[%clk 0:00:03.4]} 43. Qf7
{[%clk 0:00:01.3]} 43... Bxd4 {[%clk 0:00:02.8]} 44. Qxe6 {[%clk 0:00:01.9]}
44... Nc3 {[%clk 0:00:02.1]} 45. Qf5+ {[%clk 0:00:02.3]} 45... Kg8 {[%clk
0:00:02.5]} 46. Qc8+ {[%clk 0:00:02.1]} 46... Kh7 {[%clk 0:00:02.2]} 47. Qf5+
{[%clk 0:00:02.5]} 47... Kg8 {[%clk 0:00:02.4]} 48. Qe6+ {[%clk 0:00:03.4]}
48... Kh8 {[%clk 0:00:02.1]} 49. h5 {[%clk 0:00:04.1]} 49... Ne2+ {[%clk
0:00:01.8]} 50. Kg2 {[%clk 0:00:04]} 50... Nc3 {[%clk 0:00:02.3]} 51. Qe8+
{[%clk 0:00:04.4]} 51... Kh7 {[%clk 0:00:02.4]} 52. Qg6+ {[%clk 0:00:05.1]}
52... Kh8 {[%clk 0:00:02.4]} 53. e6 {[%clk 0:00:05.2]} 53... Nd5 {[%clk
0:00:02]} 54. e7 {[%clk 0:00:04.7]} 54... Nxe7 {[%clk 0:00:02.4]} 55. Qe8+
{[%clk 0:00:05]} 55... Ng8 {[%clk 0:00:03.1]} 56. Qd8 {[%clk 0:00:05.2]} 56...
Qc6+ {[%clk 0:00:02.8]} 57. Kg1 {[%clk 0:00:04.7]} 57... Bb6 {[%clk 0:00:03.4]}
58. Ne5 {[%clk 0:00:04.3]} 58... Qc5 {[%clk 0:00:02]} 59. Ng6+ {[%clk
0:00:04.7]} 59... Kh7 {[%clk 0:00:02.4]} 60. Qd2 {[%clk 0:00:05]} 60... Qg5
{[%clk 0:00:01.6]} 61. Qd3 {[%clk 0:00:04.9]} 61... Nf6 {[%clk 0:00:01.1]} 62.
Nf4+ {[%clk 0:00:04.2]} 62... Kg8 {[%clk 0:00:02]} 63. Qb3+ {[%clk 0:00:04.3]}
63... Kh8 {[%clk 0:00:01.3]} 64. Qxb6 {[%clk 0:00:04.8]} 64... Nxh5 {[%clk
0:00:02]} 65. Nxh5 {[%clk 0:00:04.2]} 65... Qxh5 {[%clk 0:00:02.9]} 66. Qd8+
{[%clk 0:00:04.4]} 66... Kh7 {[%clk 0:00:03.1]} 67. Qd3+ {[%clk 0:00:04.7]}
67... Kh8 {[%clk 0:00:03.6]} 68. Qd8+ {[%clk 0:00:05.4]} 68... Kh7 {[%clk
0:00:03.7]} 69. Qh4 {[%clk 0:00:06.3]} 69... Qf3 {[%clk 0:00:02.1]} 70. Qf4
{[%clk 0:00:06.2]} 70... Qxf4 {[%clk 0:00:02]} 71. gxf4 {[%clk 0:00:07.1]} 71...
Kg6 {[%clk 0:00:02.7]} 72. Kg2 {[%clk 0:00:07.8]} 72... Kf5 {[%clk 0:00:03.6]}
73. Kf3 {[%clk 0:00:08.5]} 73... g6 {[%clk 0:00:02.4]} 74. Ne3+ {[%clk
0:00:09.1]} 74... Kf6 {[%clk 0:00:02.5]} 75. Ke4 {[%clk 0:00:09.8]} 75... h5
{[%clk 0:00:02.9]} 76. Kf3 {[%clk 0:00:09.7]} 76... g5 {[%clk 0:00:02.8]} 77. f5
{[%clk 0:00:10]} 77... Ke5 {[%clk 0:00:01.8]} 78. Kg3 {[%clk 0:00:10.6]} 78...
Ke4 {[%clk 0:00:01.9]} 79. f6 {[%clk 0:00:10.7]} 1-0

[Event "Late-Titled-Tuesday-Blitz-March-12-2024"]
[Site "Chess.com"]
[Date "2024.03.12"]
[Round "11"]
[White "Mbneu"]
[Black "janhelmer03"]
[Result "1/2-1/2"]
[WhiteElo "2256"]
[BlackElo "2383"]
[TimeControl "180+1"]
[EndTime "16:05:38 PDT"]
[Termination "Game drawn by repetition"]

1. d4 {[%clk 0:02:43.6]} 1... d5 {[%clk 0:02:59.5]} 2. c4 {[%clk 0:02:43.5]}
2... e6 {[%clk 0:02:55.9]} 3. Nf3 {[%clk 0:02:42.3]} 3... Nf6 {[%clk 0:02:55.8]}
4. g3 {[%clk 0:02:42.2]} 4... Bb4+ {[%clk 0:02:49.1]} 5. Bd2 {[%clk 0:02:41.2]}
5... Be7 {[%clk 0:02:49.8]} 6. Bg2 {[%clk 0:02:40]} 6... O-O {[%clk 0:02:49.9]}
7. O-O {[%clk 0:02:38.1]} 7... c6 {[%clk 0:02:48.6]} 8. Qc2 {[%clk 0:02:37.4]}
8... b6 {[%clk 0:02:37.4]} 9. Bf4 {[%clk 0:02:36.2]} 9... Ba6 {[%clk 0:02:37.3]}
10. b3 {[%clk 0:02:35.3]} 10... Nbd7 {[%clk 0:02:36.5]} 11. Rc1 {[%clk
0:02:28.4]} 11... Rc8 {[%clk 0:02:36.3]} 12. Qb2 {[%clk 0:02:26.7]} 12... dxc4
{[%clk 0:02:34.8]} 13. bxc4 {[%clk 0:02:25.9]} 13... c5 {[%clk 0:02:35.7]} 14.
Qa3 {[%clk 0:02:08.4]} 14... Bb7 {[%clk 0:02:20.9]} 15. Qxa7 {[%clk 0:02:06.9]}
15... Bxf3 {[%clk 0:02:21.1]} 16. Bxf3 {[%clk 0:02:03.4]} 16... cxd4 {[%clk
0:02:22]} 17. Nd2 {[%clk 0:01:55.4]} 17... e5 {[%clk 0:02:21.9]} 18. Bg5 {[%clk
0:01:54.6]} 18... Nc5 {[%clk 0:02:14.1]} 19. Rab1 {[%clk 0:01:44.5]} 19... Nfd7
{[%clk 0:02:00.1]} 20. Bxe7 {[%clk 0:01:37.1]} 20... Qxe7 {[%clk 0:02:01]} 21.
Bd5 {[%clk 0:01:36.7]} 21... Qd6 {[%clk 0:01:51.2]} 22. Nb3 {[%clk 0:01:21.5]}
22... Rc7 {[%clk 0:01:46]} 23. Qa3 {[%clk 0:01:17.1]} 23... g6 {[%clk
0:01:34.4]} 24. Nxc5 {[%clk 0:01:15.7]} 24... bxc5 {[%clk 0:01:31]} 25. Rb5
{[%clk 0:01:15.5]} 25... Kg7 {[%clk 0:01:29.9]} 26. Rcb1 {[%clk 0:01:14]} 26...
f5 {[%clk 0:01:28.4]} 27. Rb7 {[%clk 0:01:07.9]} 27... Rxb7 {[%clk 0:01:28.4]}
28. Rxb7 {[%clk 0:01:06.8]} 28... Rb8 {[%clk 0:01:23.9]} 29. Qa7 {[%clk
0:01:02.1]} 29... Rxb7 {[%clk 0:01:23.7]} 30. Qxb7 {[%clk 0:01:02.6]} 30... Kf6
{[%clk 0:01:22.8]} 31. a4 {[%clk 0:01:01.3]} 31... e4 {[%clk 0:01:19.1]} 32. Qc6
{[%clk 0:00:48.7]} 32... Qxc6 {[%clk 0:01:09.2]} 33. Bxc6 {[%clk 0:00:48.6]}
33... Nb6 {[%clk 0:00:51.3]} 34. Bb5 {[%clk 0:00:44.6]} 34... Ke5 {[%clk
0:00:42.9]} 35. a5 {[%clk 0:00:43.5]} 35... Nc8 {[%clk 0:00:43.3]} 36. a6 {[%clk
0:00:37.8]} 36... Na7 {[%clk 0:00:43.1]} 37. Kf1 {[%clk 0:00:37.8]} 37... Kd6
{[%clk 0:00:42]} 38. Ke1 {[%clk 0:00:33]} 38... Kc7 {[%clk 0:00:42.5]} 39. Kd2
{[%clk 0:00:29.7]} 39... Kb6 {[%clk 0:00:43.1]} 40. Kc2 {[%clk 0:00:27.8]} 40...
Nc6 {[%clk 0:00:36.4]} 41. Kb3 {[%clk 0:00:25.7]} 41... Nb4 {[%clk 0:00:33.8]}
42. Kb2 {[%clk 0:00:23.8]} 42... Nxa6 {[%clk 0:00:33]} 43. Be8 {[%clk
0:00:21.5]} 43... Ka5 {[%clk 0:00:27.1]} 44. Bf7 {[%clk 0:00:20.8]} 44... Kb4
{[%clk 0:00:26.9]} 45. Bg8 {[%clk 0:00:21.4]} 45... h6 {[%clk 0:00:24.7]} 46.
Bh7 {[%clk 0:00:21.3]} 46... g5 {[%clk 0:00:17.6]} 47. Bxf5 {[%clk 0:00:20.8]}
47... e3 {[%clk 0:00:17.8]} 48. fxe3 {[%clk 0:00:19.9]} 48... dxe3 {[%clk
0:00:18.7]} 49. Bd3 {[%clk 0:00:19.2]} 49... Nb8 {[%clk 0:00:17.8]} 50. Kc2
{[%clk 0:00:17.6]} 50... Nc6 {[%clk 0:00:18.1]} 51. Be4 {[%clk 0:00:17.5]} 51...
Ne5 {[%clk 0:00:16.3]} 52. Bd5 {[%clk 0:00:16.7]} 52... Nxc4 {[%clk 0:00:15.3]}
53. Kd3 {[%clk 0:00:16.9]} 53... Nb6 {[%clk 0:00:13.9]} 54. Bc6 {[%clk
0:00:16.7]} 54... c4+ {[%clk 0:00:14.1]} 55. Kxe3 {[%clk 0:00:17]} 55... c3
{[%clk 0:00:14.2]} 56. Be4 {[%clk 0:00:16.6]} 56... Kb3 {[%clk 0:00:13.2]} 57.
Kf3 {[%clk 0:00:16.6]} 57... c2 {[%clk 0:00:08.8]} 58. Bxc2+ {[%clk 0:00:15.8]}
58... Kxc2 {[%clk 0:00:09.7]} 59. Kg4 {[%clk 0:00:16.1]} 59... Nd5 {[%clk
0:00:07.7]} 60. e4 {[%clk 0:00:15.6]} 60... Ne3+ {[%clk 0:00:05.9]} 61. Kh5
{[%clk 0:00:15.2]} 61... Kc3 {[%clk 0:00:04.2]} 62. e5 {[%clk 0:00:14.7]} 62...
Kd4 {[%clk 0:00:03.9]} 63. e6 {[%clk 0:00:15]} 63... Nf5 {[%clk 0:00:04.1]} 64.
Kg6 {[%clk 0:00:15]} 64... Ke5 {[%clk 0:00:04.4]} 65. e7 {[%clk 0:00:12.5]}
65... Nxe7+ {[%clk 0:00:04.2]} 66. Kxh6 {[%clk 0:00:13.1]} 66... Kf6 {[%clk
0:00:04]} 67. h4 {[%clk 0:00:10.5]} 67... g4 {[%clk 0:00:04.3]} 68. Kh5 {[%clk
0:00:10.6]} 68... Kf5 {[%clk 0:00:04.3]} 69. Kh6 {[%clk 0:00:11]} 69... Nc6
{[%clk 0:00:04.5]} 70. Kg7 {[%clk 0:00:10.6]} 70... Nd4 {[%clk 0:00:03.7]} 71.
h5 {[%clk 0:00:10.9]} 71... Ne6+ {[%clk 0:00:04.6]} 72. Kf7 {[%clk 0:00:06.7]}
72... Ng5+ {[%clk 0:00:05]} 73. Kg7 {[%clk 0:00:06.4]} 73... Ke4 {[%clk
0:00:03.4]} 74. Kg6 {[%clk 0:00:04]} 74... Ne6 {[%clk 0:00:03.8]} 75. Kf6 {[%clk
0:00:03.9]} 75... Nf8 {[%clk 0:00:03.7]} 76. Kg7 {[%clk 0:00:04.1]} 76... Ne6+
{[%clk 0:00:03.9]} 77. Kf6 {[%clk 0:00:04.4]} 77... Nf8 {[%clk 0:00:03.8]} 78.
Kg7 {[%clk 0:00:04.8]} 78... Ne6+ {[%clk 0:00:03]} 79. Kf6 {[%clk 0:00:05.1]}
1/2-1/2